bitfinex/quotes_BTCUSD_20240828
["timestamp","ask_amount","ask_price","bid_price","bid_amount"]
[1724819881434,0.53435104,59670.0,59669.0,0.167591]
[1724819883384,0.53435104,59670.0,59668.0,0.02428847]
[1724819883602,0.00186841,59669.0,59667.0,0.232796]
[1724819883966,0.00186841,59669.0,59668.0,0.167594]
[1724819885513,0.00286841,59669.0,59668.0,0.167594]
[1724819886146,0.00286841,59669.0,59668.0,0.168594]
[1724819886755,0.00286841,59669.0,59668.0,0.001]
[1724819887328,0.00286841,59669.0,59668.0,0.168594]
[1724819891051,0.02039429,59669.0,59668.0,0.168594]
[1724819891255,0.04667007,59669.0,59668.0,0.168594]
[1724819891613,0.02914419,59669.0,59668.0,0.168594]
[1724819892027,0.02727578,59669.0,59668.0,0.503782]
[1724819892161,0.02727578,59669.0,59668.0,1.06269161]
[1724819892363,0.02727578,59669.0,59668.0,1.37984336]
[1724819892604,0.02727578,59669.0,59668.0,1.30019336]
[1724819892754,0.02727578,59669.0,59668.0,1.29919336]
[1724819893149,0.02727578,59669.0,59668.0,1.281158]
[1724819893358,0.02727578,59669.0,59668.0,1.29919408]
[1724819893758,0.02727578,59669.0,59668.0,1.29919388]
[1724819893999,0.02627578,59669.0,59668.0,1.29919388]
[1724819894451,0.02727578,59669.0,59668.0,1.29919388]
[1724819895898,0.02727578,59669.0,59668.0,1.39919354]
[1724819896336,0.02727578,59669.0,59668.0,1.75738154]
[1724819896886,0.02727578,59669.0,59668.0,2.2047322]
[1724819897206,0.02727578,59669.0,59668.0,2.15008922]
[1724819897405,0.02727578,59669.0,59668.0,2.25060594]
[1724819897629,0.02727578,59669.0,59668.0,2.30092549]
[1724819898100,0.02727578,59669.0,59668.0,2.25058387]
[1724819898282,0.02627578,59669.0,59668.0,2.15008922]
[1724819898425,0.50262,59670.0,59669.0,1.178137]
[1724819898627,0.50262,59670.0,59669.0,1.8510668]
[1724819898858,0.50262,59670.0,59669.0,1.8500668]
[1724819899054,0.50262,59670.0,59669.0,1.7746991]
[1724819899259,0.50262,59670.0,59669.0,2.14665786]
[1724819899881,0.50262,59670.0,59669.0,2.24715251]
[1724819900182,0.50362,59670.0,59669.0,2.24715251]
[1724819900423,0.50362,59670.0,59669.0,2.15065786]
[1724819900614,0.50362,59670.0,59669.0,2.17584701]
[1724819900801,0.50362,59670.0,59669.0,2.30149292]
[1724819901007,0.50362,59670.0,59669.0,2.30140908]
[1724819901150,0.50362,59670.0,59669.0,1.7786991]
[1724819901350,0.50462,59670.0,59669.0,1.7896991]
[1724819901631,0.51004738,59670.0,59669.0,2.16163549]
[1724819902524,0.50462,59670.0,59669.0,2.16163549]
[1724819902780,0.50462,59670.0,59669.0,2.12785539]
[1724819903002,0.50462,59670.0,59669.0,1.78969467]
[1724819903411,0.5100945,59670.0,59669.0,1.78969467]
[1724819904265,0.53636485,59670.0,59669.0,2.12487667]
[1724819904464,0.04111432,59670.0,59669.0,2.12487667]
[1724819904717,0.03563982,59670.0,59669.0,2.12487667]
[1724819904882,0.03563982,59670.0,59669.0,2.15006405]
[1724819905334,0.03563982,59670.0,59669.0,2.12487667]
[1724819906432,0.02827035,59670.0,59669.0,2.12487667]
[1724819906605,0.02827035,59670.0,59669.0,2.10684421]
[1724819906919,0.02827035,59670.0,59669.0,2.12487559]
[1724819907846,0.000819,59681.0,59680.0,1.28132]
[1724819908137,0.000819,59681.0,59680.0,1.42235138]
[1724819909071,0.006819,59681.0,59680.0,1.42235138]
[1724819909937,0.006819,59681.0,59680.0,1.42235113]
[1724819910992,0.006819,59681.0,59680.0,1.42739113]
[1724819911657,0.000819,59681.0,59680.0,1.42739113]
[1724819912005,0.000819,59681.0,59680.0,1.42839113]
[1724819912356,0.000819,59681.0,59680.0,1.42839111]
[1724819913538,0.000819,59681.0,59680.0,1.42839114]
[1724819913702,0.000819,59681.0,59680.0,1.76351114]
[1724819913918,0.000819,59681.0,59680.0,1.78154228]
[1724819914142,0.000819,59681.0,59680.0,1.71591114]
[1724819914707,0.02708741,59681.0,59680.0,1.69788]
[1724819914917,0.02708741,59681.0,59680.0,1.71591138]
[1724819915378,0.02708741,59681.0,59680.0,1.7399154]
[1724819917323,0.02708741,59681.0,59680.0,1.72188402]
[1724819917550,0.02708741,59681.0,59680.0,1.73991591]
[1724819920123,0.02708741,59681.0,59680.0,1.85658196]
[1724819920770,0.02708741,59681.0,59680.0,1.85658146]
[1724819920994,0.000819,59681.0,59680.0,1.85658146]
[1724819922203,0.000819,59681.0,59680.0,1.67911541]
[1724819922411,0.142419,59681.0,59680.0,1.67911541]
[1724819922832,0.078419,59681.0,59680.0,1.67911541]
[1724819923280,0.078419,59681.0,59680.0,1.32099541]
[1724819924288,0.10468804,59681.0,59680.0,1.32099541]
[1724819927309,0.10468804,59681.0,59680.0,1.30296402]
[1724819928041,0.078419,59681.0,59680.0,1.30296402]
[1724819930791,0.000819,59681.0,59680.0,1.32596402]
[1724819931012,0.000819,59681.0,59680.0,1.37356402]
[1724819931444,0.02708763,59681.0,59680.0,1.37356402]
[1724819931643,0.02708763,59681.0,59680.0,1.70868402]
[1724819932287,0.02708763,59681.0,59680.0,1.37356402]
[1724819932469,0.02708763,59681.0,59680.0,1.38930543]
[1724819933914,0.02708763,59681.0,59680.0,1.72442543]
[1724819934119,0.02708763,59681.0,59680.0,1.34170543]
[1724819934345,0.10718763,59681.0,59680.0,1.34170581]
[1724819936752,0.02708763,59681.0,59680.0,1.35973736]
[1724819937944,0.02708763,59681.0,59680.0,1.40987718]
[1724819938205,0.02708763,59681.0,59680.0,1.35973736]
[1724819938550,0.02708763,59681.0,59680.0,1.40998395]
[1724819938764,0.02708763,59681.0,59680.0,1.35973736]
[1724819939230,0.02708763,59681.0,59680.0,1.40998368]
[1724819939499,0.10588763,59681.0,59680.0,1.33673736]
[1724819939736,0.17058763,59681.0,59680.0,1.32099557]
[1724819940600,0.17058763,59681.0,59680.0,1.33673805]
[1724819941393,0.17058763,59681.0,59680.0,1.3187065]
[1724819941595,0.17058763,59681.0,59680.0,1.33673842]
[1724819942014,0.17058763,59681.0,59680.0,1.32099594]
[1724819942358,0.17058763,59681.0,59680.0,1.38698479]
[1724819942552,0.17058763,59681.0,59680.0,1.33673847]
[1724819942687,0.17058763,59681.0,59680.0,1.32099594]
[1724819943387,0.17058763,59681.0,59680.0,1.37124226]
[1724819945160,0.144319,59681.0,59680.0,1.37124226]
[1724819945967,0.144319,59681.0,59680.0,1.37132136]
[1724819946313,0.144319,59681.0,59680.0,1.32099594]
[1724819947298,0.144319,59681.0,59680.0,1.33673861]
[1724819947499,0.144319,59681.0,59680.0,1.30296402]
[1724819947695,0.144319,59681.0,59680.0,1.33673571]
[1724819948310,0.144319,59681.0,59680.0,1.32099308]
[1724819948983,0.079619,59681.0,59680.0,1.32099308]
[1724819950234,0.000819,59681.0,59680.0,1.41222383]
[1724819950440,0.000819,59681.0,59680.0,1.83230577]
[1724819950777,0.000819,59681.0,59680.0,1.75838325]
[1724819950962,0.000819,59681.0,59680.0,2.10920018]
[1724819951113,0.000819,59681.0,59680.0,2.15241335]
[1724819951319,0.000819,59681.0,59680.0,2.21731195]
[1724819951766,0.000819,59681.0,59680.0,2.22131195]
[1724819951972,0.000819,59688.0,59687.0,1.507864]
[1724819952190,0.000819,59688.0,59687.0,2.01847964]
[1724819952354,0.000819,59688.0,59687.0,2.27897209]
[1724819952759,0.000819,59688.0,59687.0,2.15317266]
[1724819953387,0.000819,59688.0,59687.0,2.27890604]
[1724819953742,0.001819,59688.0,59687.0,2.15917266]
[1724819953938,0.001819,59688.0,59687.0,2.16823773]
[1724819954389,0.02808418,59688.0,59687.0,2.04250661]
[1724819954625,0.02908418,59688.0,59687.0,2.05250661]
[1724819954819,0.02908418,59688.0,59687.0,2.17823773]
[1724819955574,0.02908418,59688.0,59687.0,2.182128]
[1724819955778,0.02908418,59688.0,59687.0,2.05645599]
[1724819955998,0.02908418,59688.0,59687.0,2.15699623]
[1724819957314,0.02908418,59688.0,59687.0,2.18107618]
[1724819957714,0.02908418,59688.0,59687.0,2.18111618]
[1724819957915,0.02908418,59688.0,59687.0,2.14734868]
[1724819958117,0.02908418,59688.0,59687.0,2.18111258]
[1724819960225,0.02908418,59688.0,59687.0,2.1810426]
[1724819960465,0.02908418,59688.0,59687.0,2.23130347]
[1724819961385,0.02908418,59688.0,59687.0,2.105753]
[1724819961502,0.002819,59688.0,59687.0,2.235353]
[1724819961707,0.002819,59688.0,59687.0,2.23535173]
[1724819961928,0.002819,59688.0,59687.0,1.83977073]
[1724819962156,0.002819,59688.0,59687.0,2.25017142]
[1724819962328,0.002819,59688.0,59687.0,2.22499076]
[1724819962528,0.002819,59688.0,59687.0,1.85316627]
[1724819963063,0.002819,59688.0,59687.0,1.8531593]
[1724819963816,0.002819,59688.0,59687.0,1.77784658]
[1724819964015,0.002819,59688.0,59687.0,1.70874658]
[1724819965128,0.02908442,59688.0,59687.0,2.15588068]
[1724819966268,0.02908442,59688.0,59687.0,1.78405538]
[1724819968340,0.02908442,59688.0,59687.0,1.76603148]
[1724819968587,0.002819,59688.0,59687.0,1.78405655]
[1724819969045,0.002819,59688.0,59687.0,1.40623682]
[1724819969046,0.157419,59688.0,59687.0,1.40623682]
[1724819969304,0.157419,59688.0,59687.0,1.07115582]
[1724819969540,0.157419,59688.0,59687.0,0.99584702]
[1724819970290,0.157419,59688.0,59687.0,0.66076602]
[1724819970520,0.157419,59688.0,59687.0,0.05814502]
[1724819970749,0.157419,59688.0,59687.0,0.20765995]
[1724819971704,0.156419,59688.0,59687.0,0.29765995]
[1724819971933,0.156419,59688.0,59687.0,0.63274095]
[1724819972158,0.156419,59688.0,59687.0,0.29765995]
[1724819972395,0.156419,59688.0,59687.0,0.63274095]
[1724819972930,0.18268714,59688.0,59687.0,0.63674095]
[1724819973133,0.18168714,59688.0,59687.0,0.63074095]
[1724819973333,0.18168714,59688.0,59687.0,0.62774095]
[1724819973586,0.18168714,59688.0,59687.0,0.62674095]
[1724819973767,0.18168714,59688.0,59687.0,0.63074095]
[1724819973968,0.18168714,59688.0,59687.0,0.63174095]
[1724819974601,0.18168714,59688.0,59687.0,0.62774095]
[1724819975689,0.18168714,59688.0,59687.0,0.62674095]
[1724819975974,0.18168714,59688.0,59687.0,0.62774095]
[1724819976616,0.18168714,59688.0,59687.0,0.63174095]
[1724819977752,0.155419,59688.0,59687.0,0.63174095]
[1724819981064,0.155419,59688.0,59687.0,0.64976657]
[1724819981768,0.155419,59688.0,59687.0,0.98484757]
[1724819982661,0.155419,59688.0,59687.0,0.98384757]
[1724819982882,0.155419,59688.0,59687.0,0.97984757]
[1724819983088,0.18168666,59688.0,59687.0,0.98184757]
[1724819983290,0.18168666,59688.0,59687.0,0.98684757]
[1724819983831,0.18168666,59688.0,59687.0,0.98684644]
[1724819984217,0.18168666,59688.0,59687.0,1.32192744]
[1724819986981,0.155419,59688.0,59687.0,1.32192744]
[1724819987328,0.155419,59688.0,59687.0,1.30390295]
[1724819987549,0.155419,59688.0,59687.0,1.32192733]
[1724819989390,0.155419,59688.0,59687.0,0.98684633]
[1724819990920,0.18168669,59688.0,59687.0,0.98684633]
[1724819991135,0.18168669,59688.0,59687.0,0.98684674]
[1724819997984,0.155419,59688.0,59687.0,0.98684674]
[1724820001846,0.155419,59688.0,59687.0,0.65176574]
[1724820002638,0.156419,59688.0,59687.0,0.31668474]
[1724820003073,0.16200057,59688.0,59687.0,0.31668474]
[1724820004502,0.18826854,59688.0,59687.0,0.316686]
[1724820005785,0.18826854,59688.0,59687.0,0.149146]
[1724820006012,0.18826854,59688.0,59687.0,0.049146]
[1724820006257,0.18826854,59688.0,59687.0,0.216686]
[1724820007392,0.16200057,59688.0,59687.0,0.216686]
[1724820010227,0.16200057,59688.0,59687.0,0.21668603]
[1724820010448,0.156419,59688.0,59687.0,0.21668603]
[1724820010664,0.18268695,59688.0,59687.0,0.21668603]
[1724820010886,0.18268695,59688.0,59687.0,0.19865995]
[1724820011172,0.18825441,59688.0,59687.0,0.21668603]
[1724820011467,0.16198646,59688.0,59687.0,0.21668603]
[1724820011941,0.156419,59688.0,59687.0,0.21668603]
[1724820013295,0.156419,59688.0,59684.0,0.335096]
[1724820013513,0.156419,59688.0,59685.0,0.167546]
[1724820013514,0.001,59686.0,59685.0,0.167546]
[1724820015206,0.001,59686.0,59685.0,0.173546]
[1724820015494,0.001,59686.0,59685.0,0.006]
[1724820015719,0.00286841,59686.0,59685.0,0.006]
[1724820015932,0.00843143,59686.0,59685.0,0.006]
[1724820016154,0.00286841,59686.0,59685.0,0.006]
[1724820016379,0.00842971,59686.0,59685.0,0.009]
[1724820016596,0.001,59682.0,59681.0,0.0008998]
[1724820017029,0.00840918,59682.0,59681.0,0.0008998]
[1724820017903,0.00286841,59682.0,59681.0,0.0008998]
[1724820018110,0.003,59682.0,59681.0,0.0008998]
[1724820018518,0.003,59682.0,59681.0,0.0018998]
[1724820019267,0.002,59682.0,59681.0,0.5045718]
[1724820020039,0.084,59682.0,59681.0,0.5045718]
[1724820020568,0.084,59682.0,59681.0,0.8396868]
[1724820020834,0.084,59682.0,59681.0,0.5045718]
[1724820021243,0.084,59682.0,59681.0,0.335115]
[1724820021619,0.084,59682.0,59681.0,0.502672]
[1724820021831,0.11026954,59682.0,59681.0,0.502672]
[1724820022854,0.17746954,59682.0,59681.0,0.167557]
[1724820023059,0.1481,59681.0,59680.0,0.167598]
[1724820023265,0.1481,59681.0,59680.0,0.1676]
[1724820023676,0.1491,59681.0,59680.0,4e-05]
[1724820023890,0.15463517,59681.0,59680.0,4e-05]
[1724820024929,0.15463517,59681.0,59680.0,0.00304]
[1724820026337,0.15463517,59681.0,59680.0,4e-05]
[1724820027167,0.15863517,59681.0,59680.0,4e-05]
[1724820027369,0.15463517,59681.0,59680.0,4e-05]
[1724820027523,0.15863517,59681.0,59680.0,4e-05]
[1724820028358,0.15463517,59681.0,59680.0,4e-05]
[1724820028776,0.16063517,59681.0,59680.0,0.00104]
[1724820029934,0.16363517,59681.0,59680.0,0.00104]
[1724820030148,0.16363517,59681.0,59680.0,0.0019398]
[1724820033445,0.0773,59669.0,59668.0,0.12967169]
[1724820034331,0.08266421,59669.0,59668.0,0.12967169]
[1724820034555,0.10893903,59669.0,59668.0,0.12967169]
[1724820034803,0.10993903,59669.0,59668.0,0.13767169]
[1724820035796,0.11093903,59669.0,59668.0,0.14767169]
[1724820036426,0.11093903,59669.0,59668.0,0.17221508]
[1724820036586,0.11093903,59669.0,59668.0,0.04254339]
[1724820038099,0.08466421,59669.0,59668.0,0.21013539]
[1724820039069,0.08466421,59669.0,59668.0,0.54532339]
[1724820042402,0.08566421,59669.0,59668.0,0.21013539]
[1724820042558,0.11193942,59669.0,59668.0,0.21013539]
[1724820043638,0.11193942,59669.0,59668.0,0.04344319]
[1724820043802,0.17913942,59669.0,59668.0,0.0188998]
[1724820044314,0.18100783,59669.0,59668.0,0.0188998]
[1724820044480,0.17813942,59669.0,59668.0,0.0108998]
[1724820044937,0.18513942,59669.0,59668.0,0.0118998]
[1724820045175,0.18513942,59669.0,59668.0,0.0108998]
[1724820045305,0.18413942,59669.0,59668.0,0.0008998]
[1724820045487,0.19200783,59669.0,59668.0,0.0018998]
[1724820046168,0.19600783,59669.0,59668.0,0.0018998]
[1724820046760,0.19200783,59669.0,59668.0,0.0018998]
[1724820046939,0.18000783,59669.0,59668.0,0.0008998]
[1724820047146,0.18500783,59669.0,59668.0,0.0008998]
[1724820047565,0.18000783,59669.0,59668.0,0.0008998]
[1724820047912,0.18500783,59669.0,59668.0,0.0008998]
[1724820049479,0.15873262,59669.0,59668.0,0.0008998]
[1724820051180,0.15873262,59669.0,59668.0,0.0009398]
[1724820052682,0.18501287,59669.0,59668.0,0.0009398]
[1724820053707,0.30167688,59669.0,59668.0,0.0009398]
[1724820054716,0.29667688,59669.0,59668.0,0.0009398]
[1724820055465,0.30767688,59669.0,59668.0,0.0019398]
[1724820055671,0.30667688,59669.0,59668.0,0.0019398]
[1724820055881,0.31467688,59669.0,59668.0,0.0029398]
[1724820056713,0.35114161,59669.0,59668.0,0.0029398]
[1724820057133,0.32486136,59669.0,59668.0,0.0029398]
[1724820060647,0.35114225,59669.0,59668.0,0.0029398]
[1724820061816,0.19801351,59669.0,59668.0,0.0029398]
[1724820062017,0.31467752,59669.0,59668.0,0.0029398]
[1724820063858,0.81745752,59669.0,59668.0,0.0029398]
[1724820064533,0.8349834,59669.0,59668.0,0.0029398]
[1724820065402,0.71831939,59669.0,59668.0,0.0029398]
[1724820065621,0.8349834,59669.0,59668.0,0.0029398]
[1724820066317,0.91848174,59669.0,59668.0,0.0029398]
[1724820067062,0.91929974,59669.0,59668.0,0.0029398]
[1724820068141,0.89301885,59669.0,59668.0,0.0029398]
[1724820071281,0.96927025,59669.0,59668.0,0.0029398]
[1724820071534,0.96930117,59669.0,59668.0,0.0029398]
[1724820075189,0.86205504,59669.0,59668.0,0.0029398]
[1724820075418,0.98705835,59669.0,59668.0,0.0029398]
[1724820075855,0.86205504,59669.0,59668.0,0.0029398]
[1724820077324,0.85105504,59669.0,59668.0,0.0019398]
[1724820077730,0.86505504,59669.0,59668.0,0.0019398]
[1724820078020,0.92678733,59669.0,59668.0,0.0019398]
[1724820078186,0.92378733,59669.0,59668.0,0.0009398]
[1724820078389,0.93778733,59669.0,59668.0,0.0009398]
[1724820078740,0.94978733,59669.0,59668.0,0.0019398]
[1724820078886,0.83312332,59669.0,59668.0,0.0019398]
[1724820079100,0.93778733,59669.0,59668.0,0.0009398]
[1724820079255,0.95178733,59669.0,59668.0,0.0009398]
[1724820079493,1.10186517,59669.0,59668.0,0.0009398]
[1724820080133,0.83577404,59669.0,59668.0,0.0009398]
[1724820080539,0.82177404,59669.0,59668.0,0.0009398]
[1724820080923,0.82200998,59669.0,59668.0,0.0009398]
[1724820081261,0.84829346,59669.0,59668.0,0.0009398]
[1724820081472,0.87629346,59669.0,59668.0,0.0009398]
[1724820081696,1.0448451,59669.0,59668.0,0.0009398]
[1724820081895,0.87629346,59669.0,59668.0,0.0009398]
[1724820082113,0.87629346,59669.0,59651.0,0.05524488]
[1724820082114,0.001,59652.0,59651.0,0.05524488]
[1724820082472,0.62044401,59652.0,59651.0,0.05524488]
[1724820082687,0.62604301,59652.0,59651.0,0.05524488]
[1724820082890,0.65232823,59652.0,59651.0,0.05524488]
[1724820083045,0.53566422,59652.0,59651.0,0.05524488]
[1724820083454,0.54766422,59652.0,59651.0,0.05524488]
[1724820084500,0.53966422,59652.0,59651.0,0.05524488]
[1724820084705,0.53566422,59652.0,59651.0,0.05524488]
[1724820085097,0.54466422,59652.0,59651.0,0.05524488]
[1724820085203,0.54466422,59652.0,59651.0,0.19174488]
[1724820085418,0.55066422,59652.0,59651.0,0.19174488]
[1724820086164,0.53566422,59652.0,59651.0,0.35938588]
[1724820086373,0.53966422,59652.0,59651.0,0.38414933]
[1724820086581,0.54766422,59652.0,59651.0,0.21650833]
[1724820087460,0.53966422,59652.0,59651.0,0.21650833]
[1724820088234,0.53566422,59652.0,59651.0,0.21650833]
[1724820088442,0.53566422,59652.0,59651.0,0.21850833]
[1724820088966,0.53566422,59652.0,59651.0,0.21650833]
[1724820089328,0.53566422,59652.0,59651.0,0.21850833]
[1724820089870,0.53566422,59652.0,59651.0,0.38614933]
[1724820090958,0.53566422,59652.0,59651.0,0.21850833]
[1724820091310,0.54266422,59652.0,59651.0,0.21650833]
[1724820091565,0.53866422,59652.0,59651.0,0.21740813]
[1724820091863,0.53966422,59652.0,59651.0,0.21740813]
[1724820092113,0.53666422,59652.0,59651.0,0.21740813]
[1724820092303,0.53666422,59652.0,59651.0,0.38704913]
[1724820093397,0.510379,59652.0,59651.0,0.21940813]
[1724820093815,0.510379,59652.0,59651.0,0.38704913]
[1724820094032,0.510379,59652.0,59651.0,0.72233213]
[1724820094476,0.510379,59652.0,59651.0,0.38704913]
[1724820095380,0.510379,59652.0,59651.0,0.72233213]
[1724820096228,0.510379,59652.0,59651.0,0.38704913]
[1724820096645,0.53666266,59652.0,59651.0,0.38704913]
[1724820097073,0.53666266,59652.0,59651.0,0.38708913]
[1724820097302,0.53666266,59652.0,59651.0,0.72237213]
[1724820097536,0.53666266,59652.0,59651.0,0.38708913]
[1724820097981,0.53666266,59652.0,59651.0,0.12618468]
[1724820098943,0.53666266,59652.0,59651.0,0.22582568]
[1724820099397,0.510379,59652.0,59651.0,0.22582568]
[1724820101296,0.510379,59652.0,59651.0,0.05818468]
[1724820101761,0.510379,59652.0,59651.0,0.22582568]
[1724820102689,0.53666342,59652.0,59651.0,0.22582568]
[1724820103331,0.53666342,59652.0,59651.0,0.05818468]
[1724820103778,0.53748142,59652.0,59651.0,0.05818468]
[1724820104234,0.68398142,59652.0,59651.0,0.05818468]
[1724820105366,0.80064543,59652.0,59651.0,0.05818468]
[1724820106668,0.79964543,59652.0,59651.0,0.05818468]
[1724820106879,0.61508142,59652.0,59651.0,0.05818468]
[1724820107086,0.61508142,59652.0,59651.0,0.05618468]
[1724820107087,0.54248142,59652.0,59651.0,0.05618468]
[1724820107294,0.53648142,59652.0,59651.0,0.05618468]
[1724820107496,0.53648142,59652.0,59651.0,0.05718468]
[1724820108169,0.54248142,59652.0,59651.0,0.05718468]
[1724820108625,0.54248142,59652.0,59651.0,0.05618468]
[1724820108860,0.54448142,59652.0,59651.0,0.05618468]
[1724820113374,0.68858142,59652.0,59651.0,0.05618468]
[1724820113583,0.662297,59652.0,59651.0,0.05618468]
[1724820116815,0.68858226,59652.0,59651.0,0.05618468]
[1724820118041,0.78164715,59652.0,59651.0,0.05618468]
[1724820118368,0.68858226,59652.0,59651.0,0.05618468]
[1724820119523,0.662297,59652.0,59651.0,0.05618468]
[1724820122965,0.6885824,59652.0,59651.0,0.05618468]
[1724820124156,0.76382398,59652.0,59651.0,0.05618468]
[1724820125909,0.6885824,59652.0,59651.0,0.05618468]
[1724820127923,0.76394447,59652.0,59651.0,0.05618468]
[1724820129082,0.76394399,59652.0,59651.0,0.05618468]
[1724820129306,0.76394533,59652.0,59651.0,0.05618468]
[1724820130569,0.73765993,59652.0,59651.0,0.05618468]
[1724820133296,0.85432394,59652.0,59651.0,0.05618468]
[1724820133653,0.8806099,59652.0,59651.0,0.05618468]
[1724820138924,0.88056826,59652.0,59651.0,0.05618468]
[1724820139131,0.88057013,59652.0,59651.0,0.05618468]
[1724820139354,0.85428417,59652.0,59651.0,0.05618468]
[1724820141939,0.73762016,59652.0,59651.0,0.05618468]
[1724820142544,0.76390612,59652.0,59651.0,0.05618468]
[1724820143136,0.76310612,59652.0,59651.0,0.05618468]
[1724820143369,0.87977013,59652.0,59651.0,0.05618468]
[1724820147564,0.85348417,59652.0,59651.0,0.05618468]
[1724820150118,0.85344585,59652.0,59651.0,0.05618468]
[1724820150345,0.77816101,59652.0,59651.0,0.05618468]
[1724820154786,0.80444705,59652.0,59651.0,0.05618468]
[1724820157721,0.83070495,59652.0,59651.0,0.05618468]
[1724820160597,0.80441891,59652.0,59651.0,0.05618468]
[1724820163720,0.83070523,59652.0,59651.0,0.05618468]
[1724820166120,0.85768921,59652.0,59651.0,0.05618468]
[1724820167372,0.83140289,59652.0,59651.0,0.05618468]
[1724820167575,0.80441891,59652.0,59651.0,0.05618468]
[1724820168390,0.80241891,59652.0,59651.0,0.05618468]
[1724820168592,0.79641891,59652.0,59651.0,0.05618468]
[1724820168795,0.80341891,59652.0,59651.0,0.05618468]
[1724820169209,0.80641891,59652.0,59651.0,0.05618468]
[1724820169679,0.81341891,59652.0,59651.0,0.05618468]
[1724820170124,0.89701549,59652.0,59651.0,0.05618468]
[1724820170559,0.88701549,59652.0,59651.0,0.05618468]
[1724820170746,0.88001549,59652.0,59651.0,0.05618468]
[1724820171098,0.89401549,59652.0,59651.0,0.05618468]
[1724820171304,0.90801549,59652.0,59651.0,0.05618468]
[1724820171526,0.89401549,59652.0,59651.0,0.05618468]
[1724820171925,0.82441891,59652.0,59651.0,0.05618468]
[1724820180258,0.79641891,59652.0,59651.0,0.05618468]
[1724820180500,0.81541891,59652.0,59651.0,0.05618468]
[1724820180711,0.82941891,59652.0,59651.0,0.05618468]
[1724820180916,0.80141891,59652.0,59651.0,0.05618468]
[1724820181122,0.99846445,59652.0,59651.0,0.05618468]
[1724820181337,0.91379325,59652.0,59651.0,0.05618468]
[1724820183222,1.68810469,59652.0,59651.0,0.05618468]
[1724820183433,1.88015023,59652.0,59651.0,0.05618468]
[1724820183664,1.86605297,59652.0,59651.0,0.05618468]
[1724820183879,1.88005297,59652.0,59651.0,0.05618468]
[1724820184110,1.86605297,59652.0,59651.0,0.05618468]
[1724820184587,1.86605297,59652.0,59643.0,0.008998]
[1724820184588,0.11766401,59644.0,59643.0,0.008998]
[1724820184821,0.006,59642.0,59641.0,0.008998]
[1724820185027,0.006,59642.0,59631.0,0.0628]
[1724820185028,0.11766401,59632.0,59631.0,0.0628]
[1724820185256,0.67047246,59632.0,59631.0,0.0628]
[1724820185503,0.62044401,59632.0,59631.0,0.0628]
[1724820185709,0.76044811,59632.0,59631.0,0.0628]
[1724820185930,0.76044746,59632.0,59631.0,0.0628]
[1724820186166,0.76044546,59632.0,59631.0,0.0628]
[1724820186383,0.7272278,59632.0,59631.0,0.0628]
[1724820186598,0.65218582,59632.0,59631.0,0.0628]
[1724820186815,0.53552181,59632.0,59631.0,0.0628]
[1724820187037,0.65218582,59632.0,59631.0,0.0628]
[1724820187671,0.68018582,59632.0,59631.0,0.0628]
[1724820187887,0.66618582,59632.0,59631.0,0.0628]
[1724820188315,0.68018582,59632.0,59631.0,0.0628]
[1724820188464,0.66618582,59632.0,59631.0,0.0628]
[1724820188667,0.63988804,59632.0,59631.0,0.0628]
[1724820188950,0.70887466,59632.0,59631.0,0.0628]
[1724820189082,0.52322403,59632.0,59631.0,0.0628]
[1724820189265,0.63988804,59632.0,59631.0,0.0628]
[1724820189707,0.63988804,59632.0,59631.0,0.0004]
[1724820190197,0.65388804,59632.0,59631.0,0.0004]
[1724820190689,0.62588804,59632.0,59631.0,0.0004]
[1724820190915,0.72047466,59632.0,59631.0,0.0004]
[1724820191343,0.65288804,59632.0,59631.0,0.0004]
[1724820191541,0.63988804,59632.0,59631.0,0.0004]
[1724820191974,0.66618447,59632.0,59631.0,0.0004]
[1724820192603,0.67118447,59632.0,59631.0,0.0004]
[1724820193005,0.68518447,59632.0,59631.0,0.0004]
[1724820193207,0.77115948,59632.0,59631.0,0.0004]
[1724820193475,0.74315948,59632.0,59631.0,0.0004]
[1724820193635,0.75715948,59632.0,59631.0,0.0004]
[1724820193841,0.77115948,59632.0,59631.0,0.0004]
[1724820194268,0.75715948,59632.0,59631.0,0.0004]
[1724820194469,0.81797332,59632.0,59631.0,0.0004]
[1724820194674,0.75715948,59632.0,59631.0,0.0004]
[1724820194903,0.87224716,59632.0,59631.0,0.0004]
[1724820196291,0.87224716,59632.0,59631.0,0.0012998]
[1724820196496,0.95304716,59632.0,59631.0,0.0012998]
[1724820196710,0.92677332,59632.0,59631.0,0.0012998]
[1724820197431,0.95304716,59632.0,59631.0,0.0012998]
[1724820197644,0.95304716,59632.0,59629.0,0.008998]
[1724820197645,0.0839,59630.0,59629.0,0.008998]
[1724820197878,0.0839,59628.0,59621.0,0.008998]
[1724820198088,0.73149014,59628.0,59621.0,0.008998]
[1724820198292,0.001,59622.0,59621.0,0.008998]
[1724820198508,0.68665453,59622.0,59621.0,0.008998]
[1724820198903,0.67747457,59622.0,59621.0,0.008998]
[1724820199108,0.62770246,59622.0,59621.0,0.008998]
[1724820200359,0.64170246,59622.0,59621.0,0.008998]
[1724820200934,0.65570246,59622.0,59621.0,0.008998]
[1724820201778,0.68200498,59622.0,59621.0,0.008998]
[1724820201980,0.76522738,59622.0,59621.0,0.008998]
[1724820202755,0.73722738,59622.0,59621.0,0.008998]
[1724820202982,0.75122738,59622.0,59621.0,0.008998]
[1724820203177,0.76522738,59622.0,59621.0,0.008998]
[1724820204194,0.76522738,59622.0,59621.0,0.009038]
[1724820205799,0.76522738,59622.0,59621.0,0.070238]
[1724820206070,0.90872738,59622.0,59621.0,0.009038]
[1724820206286,0.91372738,59622.0,59621.0,0.009038]
[1724820206695,0.89972738,59622.0,59621.0,0.009038]
[1724820206903,0.56534097,59622.0,59621.0,0.009038]
[1724820207113,0.66800498,59622.0,59621.0,0.009038]
[1724820207326,0.64170246,59622.0,59621.0,0.009038]
[1724820207534,0.65570246,59622.0,59621.0,0.009038]
[1724820207747,0.64170246,59622.0,59621.0,0.009038]
[1724820207962,0.74820854,59622.0,59621.0,0.009038]
[1724820208413,0.74820854,59622.0,59621.0,0.117338]
[1724820208414,0.52503845,59622.0,59621.0,0.117338]
[1724820208657,0.62770246,59622.0,59621.0,0.117338]
[1724820208911,0.64170246,59622.0,59621.0,0.117338]
[1724820209612,0.65570246,59622.0,59621.0,0.117338]
[1724820210136,0.005,59618.0,59610.0,0.0665]
[1724820210394,0.11766401,59612.0,59610.0,0.0665]
[1724820210640,0.11766401,59612.0,59607.0,0.0476]
[1724820210641,0.11953242,59612.0,59607.0,0.0665]
[1724820210881,0.00820679,59612.0,59607.0,0.0665]
[1724820211122,0.6276508,59612.0,59607.0,0.0665]